fUSD/lending_fUSD_20240222
["ID","MTS","AMOUNT","RATE_DAILY","PERIOD"]
[314858929,1708597847498,-500.0,0.00035616,2]
[314858930,1708597847507,-205.701602,0.00035616,7]
[314858931,1708597847516,-156.990818,0.00035616,7]
[314858932,1708597847526,-500.0,0.00035616,2]
[314858933,1708597847535,-564.12,0.00035616,2]
[314858934,1708597847544,-500.0,0.00035616,2]
[314858935,1708597847553,-1209.41,0.00035616,2]
[314858936,1708597847562,-151.0,0.00035616,7]
[314858937,1708597847572,-500.0,0.00035616,2]
[314858938,1708597847581,-223.98052,0.00035616,7]
[314858939,1708597847591,-500.0,0.00035616,2]
[314858940,1708597847600,-500.0,0.00035616,2]
[314858941,1708597847608,-1183.46,0.00035616,2]
[314858942,1708597847617,-152.041679,0.00035616,7]
[314858943,1708597847626,-1372.67,0.00035616,2]
[314858944,1708597847636,-500.0,0.00035616,2]
[314858945,1708597847645,-1372.67,0.00035616,2]
[314858946,1708597847654,-1372.67,0.00035616,2]
[314858947,1708597847663,-500.0,0.00035616,2]
[314858948,1708597847673,-1372.67,0.00035616,2]
[314858949,1708597847683,-6889.55,0.00035616,2]
[314858950,1708597847694,-500.0,0.00035616,2]
[314858951,1708597847704,-1372.67,0.00035616,2]
[314858952,1708597847713,-1372.67,0.00035616,2]
[314858953,1708597847722,-1330.65,0.00035616,2]
[314858954,1708597847730,-1372.67,0.00035616,2]
[314858955,1708597847740,-500.0,0.00035616,2]
[314858956,1708597847749,-1372.67,0.00035616,2]
[314858957,1708597847758,-1372.67,0.00035616,2]
[314858958,1708597847767,-500.0,0.00035616,2]
[314858959,1708597847776,-3353.18,0.00035616,2]
[314858960,1708597847786,-514.098445,0.00035616,2]
[314858961,1708597847795,-151.0,0.00035616,7]
[314858962,1708597847804,-514.73374373,0.00035616,2]
[314858963,1708597847813,-500.0,0.00035616,2]
[314858964,1708597847823,-500.0,0.00035616,2]
[314858965,1708597847832,-900.14,0.00035616,2]
[314858966,1708597847841,-514.098445,0.00035616,2]
[314858967,1708597847851,-500.0,0.00035616,2]
[314858968,1708597847860,-151.0,0.00035616,7]
[314858969,1708597847870,-1516.03,0.00035616,2]
[314858970,1708597847879,-540.41,0.00035616,2]
[314858971,1708597847888,-500.0,0.00035616,2]
[314858972,1708597847899,-500.0,0.00035616,2]
[314858973,1708597847908,-500.0,0.00035616,2]
[314858974,1708597847918,-1542.37,0.00035616,2]
[314858975,1708597847927,-702.67,0.00035616,2]
[314858976,1708597847937,-918.41,0.00035616,2]
[314858977,1708597847947,-500.0,0.00035616,2]
[314858978,1708597847956,-500.0,0.00035616,2]
[314858979,1708597847965,-926.53,0.00035616,2]
[314858980,1708597847975,-151.0,0.00035616,7]
[314858981,1708597847984,-3000.0,0.00035616,2]
[314858982,1708597847994,-151.0,0.00035616,7]
[314858983,1708597848003,-151.0,0.00035616,7]
[314858984,1708597848013,-500.0,0.00035616,2]
[314858985,1708597848022,-7726.23,0.00035616,2]
[314858986,1708597848032,-500.0,0.00035616,2]
[314858987,1708597848041,-151.0,0.00035616,7]
[314858988,1708597848050,-1523.17,0.00035616,2]
[314858989,1708597848059,-300.354717,0.00035616,7]
[314858990,1708597848068,-500.0,0.00035616,2]
[314858991,1708597848077,-500.0,0.00035616,2]
[314858992,1708597848086,-500.0,0.00035616,2]
[314858993,1708597848095,-500.0,0.00035616,2]
[314858994,1708597848105,-500.0,0.00035616,2]
[314858995,1708597848114,-636.34,0.00035616,2]
[314858996,1708597848123,-708.467553,0.00035616,7]
[314858997,1708597848132,-208.596459,0.00035616,7]
[314858998,1708597848141,-500.0,0.00035616,2]
[314858999,1708597848150,-594.06704932,0.00035616,2]
[314859000,1708597848159,-742.49,0.00035616,2]
[314859001,1708597848168,-2922.05,0.00035616,2]
[314859002,1708597848178,-8775.06,0.00035616,2]
[314859003,1708597848187,-708.467553,0.00035616,7]
[314859004,1708597848196,-252.97,0.00035616,2]
[314859005,1708597848206,-320.098904,0.00035616,7]
[314859006,1708597848215,-608.64,0.00035616,2]
[314859007,1708597848225,-320.098904,0.00035616,7]
[314859008,1708597848234,-528.21,0.00035616,2]
[314859009,1708597848243,-694.79,0.00035616,2]
[314859010,1708597848253,-1512.14,0.00035616,2]
[314859011,1708597848262,-500.0,0.00035616,2]
[314859012,1708597848270,-241.520072,0.00035616,7]
[314859013,1708597848279,-554.39,0.00035616,2]
[314859014,1708597848289,-151.0,0.00035616,7]
[314859015,1708597848298,-241.520072,0.00035616,7]
[314859016,1708597848308,-151.0,0.00035616,7]
[314859017,1708597848318,-500.0,0.00035616,2]
[314859018,1708597848328,-500.0,0.00035616,2]
[314859019,1708597848338,-732.84,0.00035616,2]
[314859020,1708597848347,-151.0,0.00035616,7]
[314859021,1708597848356,-8214.7,0.00035616,2]
[314859022,1708597848366,-500.0,0.00035616,2]
[314859023,1708597848375,-516.39195121,0.00035616,2]
[314859024,1708597848385,-500.0,0.00035616,2]
[314859025,1708597848394,-555.31,0.00035616,2]
[314859026,1708597848403,-500.0,0.00035616,2]
[314859027,1708597848412,-1326.32,0.00035616,2]
[314859028,1708597848421,-940.48,0.00035616,2]
[314859029,1708597848431,-500.0,0.00035616,2]
[314859030,1708597848440,-964.63,0.00035616,2]
[314859031,1708597848449,-20726.17,0.00035616,2]
[314859032,1708597848458,-151.0,0.00035616,7]
[314859033,1708597848467,-1010.66,0.00035616,2]
[314859034,1708597848477,-500.0,0.00035616,2]
[314859035,1708597848488,-610.55,0.00035616,2]
[314859036,1708597848506,-500.0,0.00035616,2]
[314859037,1708597848525,-3447.89,0.00035616,2]
[314859038,1708597848547,-880.8,0.00035616,2]
[314859039,1708597848568,-1684.38,0.00035616,2]
[314859040,1708597848588,-151.0,0.00035616,7]
[314859041,1708597848610,-500.0,0.00035616,2]
[314859042,1708597848636,-770.87,0.00035616,2]
[314859043,1708597848662,-500.0,0.00035616,2]
[314859044,1708597848690,-1122.87,0.00035616,2]
[314859045,1708597848699,-500.0,0.00035616,2]
[314859046,1708597848709,-2754.89,0.00035616,2]
[314859047,1708597848718,-4906.95,0.00035616,2]
[314859048,1708597848728,-1144.83,0.00035616,2]
[314859049,1708597848737,-779.6,0.00035616,2]
[314859050,1708597848747,-500.0,0.00035616,2]
[314859051,1708597848756,-1227.85,0.00035616,2]
[314859052,1708597848765,-916.269939,0.00035616,7]
[314859053,1708597848776,-151.0,0.00035616,7]
[314859054,1708597848785,-500.0,0.00035616,2]
[314859055,1708597848794,-500.0,0.00035616,2]
[314859056,1708597848804,-168.72259126,0.00035616,2]
[314859057,1708597848813,-916.269939,0.00035616,7]
[314859058,1708597848823,-275.51258361,0.00035616,2]
[314859059,1708597848832,-532.81403534,0.00035616,2]
[314859060,1708597848842,-707.16,0.00035616,2]
[314859061,1708597848851,-47038.29,0.00035616,2]
[314859062,1708597848860,-1257.3,0.00035616,2]
[314859063,1708597848869,-795.43,0.00035616,2]
[314859064,1708597848878,-563.8,0.00035616,2]
[314859065,1708597848888,-560.41,0.00035616,2]
[314859066,1708597848897,-500.0,0.00035616,2]
[314859067,1708597848907,-500.0,0.00035616,2]
[314859068,1708597848917,-1329.24,0.00035616,2]
[314859069,1708597848926,-500.0,0.00035616,2]
[314859070,1708597848937,-1062.54,0.00035616,2]
[314859071,1708597848946,-500.0,0.00035616,2]
[314859072,1708597848956,-500.0,0.00035616,2]
[314859073,1708597849047,-502.36855736,0.00035616,2]
[314859074,1708597849091,-837.15,0.00035616,2]
[314859075,1708597849100,-500.0,0.00035616,2]
[314859076,1708597849110,-1789.32,0.00035616,2]
[314859077,1708597849118,-185.776177,0.00035616,7]
[314859078,1708597849127,-666.79,0.00035616,2]
[314859079,1708597849137,-2082.29,0.00035616,2]
[314859080,1708597849146,-500.0,0.00035616,2]
[314859081,1708597849155,-1733.23,0.00035616,2]
[314859082,1708597849165,-7840.23,0.00035616,2]
[314859083,1708597849174,-3035.77,0.00035616,2]
[314859084,1708597849184,-500.0,0.00035616,2]
[314859085,1708597849194,-500.0,0.00035616,2]
[314859086,1708597849203,-185.776177,0.00035616,7]
[314859087,1708597849213,-500.0,0.00035616,2]
[314859088,1708597849221,-500.0,0.00035616,2]
[314859089,1708597849231,-586.69,0.00035616,2]
[314859090,1708597849240,-1705.77,0.00035616,2]
[314859091,1708597849249,-500.0,0.00035616,2]
[314859092,1708597849259,-500.0,0.00035616,2]
[314859093,1708597849268,-1198.16,0.00035616,2]
[314859094,1708597849277,-481.191766,0.00035616,7]
[314859095,1708597849287,-500.0,0.00035616,2]
[314859096,1708597849296,-481.191766,0.00035616,7]
[314859097,1708597849306,-566.05,0.00035616,2]
[314859098,1708597849315,-500.0,0.00035616,2]
[314859099,1708597849324,-1092.19,0.00035616,2]
[314859100,1708597849334,-500.0,0.00035616,2]
[314859101,1708597849343,-500.0,0.00035616,2]
[314859102,1708597849353,-5707.77,0.00035616,2]
[314859103,1708597849363,-1232.71,0.00035616,2]
[314859104,1708597849372,-500.0,0.00035616,2]
[314859105,1708597849382,-4240.78,0.00035616,2]
[314859106,1708597849392,-500.0,0.00035616,2]
[314859107,1708597849401,-523.377539,0.00035616,7]
[314859108,1708597849411,-3006.07,0.00035616,2]
[314859109,1708597849420,-500.0,0.00035616,2]
[314859110,1708597849431,-500.0,0.00035616,2]
[314859111,1708597849440,-967.11,0.00035616,2]
[314859112,1708597849450,-500.0,0.00035616,2]
[314859113,1708597849459,-1384.32,0.00035616,2]
[314859114,1708597849469,-500.0,0.00035616,2]
[314859115,1708597849479,-523.377539,0.00035616,7]
[314859116,1708597849491,-839.4,0.00035616,2]
[314859117,1708597849500,-686.86,0.00035616,2]
[314859118,1708597849509,-500.0,0.00035616,2]
[314859119,1708597849518,-10453.25,0.00035616,2]
[314859120,1708597849528,-2440.22,0.00035616,2]
[314859121,1708597849537,-500.0,0.00035616,2]
[314859122,1708597849547,-2691.461799,0.00035616,7]
[314859123,1708597849556,-500.0,0.00035616,2]
[314859124,1708597849567,-500.0,0.00035616,2]
[314859125,1708597849576,-1182.22,0.00035616,2]
[314859126,1708597849586,-2691.461799,0.00035616,7]
[314859127,1708597849595,-500.0,0.00035616,2]
[314859128,1708597849605,-500.0,0.00035616,2]
[314859129,1708597849614,-500.0,0.00035616,2]
[314859130,1708597849623,-1024.47,0.00035616,2]
[314859131,1708597849633,-758.2,0.00035616,2]
[314859132,1708597849642,-436.296255,0.00035616,7]
[314859133,1708597849652,-541.1,0.00035616,2]
[314859134,1708597849662,-552.3,0.00035616,2]
[314859135,1708597849670,-500.0,0.00035616,2]
[314859136,1708597849681,-162.127582,0.00035616,7]
[314859137,1708597849690,-2921.556529,0.00035616,7]
[314859138,1708597849699,-500.0,0.00035616,2]
[314859139,1708597849709,-500.0,0.00035616,2]
[314859140,1708597849718,-14563.4,0.00035616,2]
[314859141,1708597849727,-2830.92,0.00035616,2]
[314859142,1708597849737,-10922.43,0.00035616,2]
[314859143,1708597849746,-436.296255,0.00035616,7]
[314859144,1708597849755,-500.0,0.00035616,2]
[314859145,1708597849765,-162.127582,0.00035616,7]
[314859146,1708597849774,-500.0,0.00035616,2]
[314859147,1708597849783,-250.0,0.00035616,2]
[314859148,1708597849793,-500.0,0.00035616,2]
[314859149,1708597849803,-2921.556529,0.00035616,7]
[314859150,1708597849812,-4965.81,0.00035616,2]
[314859151,1708597849822,-2156.96,0.00035616,2]
[314859152,1708597849831,-3218.52,0.00035616,2]
[314859153,1708597849840,-587.97,0.00035616,2]
[314859154,1708597849850,-705.29,0.00035616,2]
[314859155,1708597849860,-506.36,0.00035616,2]
[314859156,1708597849869,-500.0,0.00035616,2]
[314859157,1708597849878,-500.0,0.00035616,2]
[314859158,1708597849888,-821.19,0.00035616,2]
[314859159,1708597849897,-500.0,0.00035616,2]
[314859160,1708597849907,-500.0,0.00035616,2]
[314859161,1708597849917,-667.16,0.00035616,2]
[314859162,1708597849926,-500.0,0.00035616,2]
[314859163,1708597849937,-151.0,0.00035616,7]
[314859164,1708597849946,-2771.45,0.00035616,2]
[314859165,1708597849956,-10667.99,0.00035616,2]
[314859166,1708597849965,-251.97265686,0.00035616,2]
[314859167,1708597849974,-1062.433765,0.00035616,7]
[314859168,1708597849984,-2109.47,0.00035616,2]
[314859169,1708597849993,-14384.9,0.00035616,2]
[314859170,1708597850003,-500.0,0.00035616,2]
[314859171,1708597850012,-1511.85,0.00035616,2]
[314859172,1708597850022,-500.0,0.00035616,2]
[314859173,1708597850031,-1062.433765,0.00035616,7]
[314859174,1708597850041,-2861.97,0.00035616,2]
[314859175,1708597850050,-500.0,0.00035616,2]
[314859176,1708597850060,-500.0,0.00035616,2]
[314859177,1708597850069,-500.0,0.00035616,2]
[314859178,1708597850079,-1009.87327385,0.00035616,7]
[314859179,1708597850088,-500.0,0.00035616,2]
[314859180,1708597850098,-500.0,0.00035616,2]
[314859181,1708597850107,-1613.0,0.00035616,2]
[314859182,1708597850116,-500.0,0.00035616,2]
[314859183,1708597850125,-546.67647474,0.00035616,2]
[314859184,1708597850135,-8455.17,0.00035616,2]
[314859185,1708597850144,-500.0,0.00035616,2]
[314859186,1708597850154,-4185.4,0.00035616,2]
[314859187,1708597850163,-305.565753,0.00035616,7]
[314859188,1708597850172,-500.0,0.00035616,2]
[314859189,1708597850182,-560.61,0.00035616,2]
[314859190,1708597850192,-500.0,0.00035616,2]
[314859191,1708597850201,-305.565753,0.00035616,7]
[314859192,1708597850210,-523.68885117,0.00035616,2]
[314859193,1708597850220,-500.0,0.00035616,2]
[314859194,1708597850229,-946.76,0.00035616,2]
[314859195,1708597850239,-895.59,0.00035616,2]
[314859196,1708597850248,-151.0,0.00035616,7]
[314859197,1708597850258,-655.68,0.00035616,2]
[314859198,1708597850267,-500.0,0.00035616,2]
[314859199,1708597850276,-500.0,0.00035616,2]
[314859200,1708597850286,-1517.53,0.00035616,2]
[314859201,1708597850295,-500.0,0.00035616,2]
[314859202,1708597850304,-832.83,0.00035616,2]
[314859203,1708597850314,-2838.91,0.00035616,2]
[314859204,1708597850324,-500.0,0.00035616,2]
[314859205,1708597850333,-817.54,0.00035616,2]
[314859206,1708597850342,-2790.85,0.00035616,2]
[314859207,1708597850352,-800.67,0.00035616,2]
[314859208,1708597850361,-979.48,0.00035616,2]
[314859209,1708597850370,-20259.83,0.00035616,2]
[314859210,1708597850379,-500.0,0.00035616,2]
[314859211,1708597850389,-764.41,0.00035616,2]
[314859212,1708597850398,-500.0,0.00035616,2]
[314859213,1708597850408,-2426.16,0.00035616,2]
[314859214,1708597850417,-500.0,0.00035616,2]
[314859215,1708597850427,-5923.453846,0.00035616,7]
[314859216,1708597850439,-1341.35,0.00035616,2]
[314859217,1708597850448,-500.0,0.00035616,2]
[314859218,1708597850458,-5923.453846,0.00035616,7]
[314859219,1708597850467,-1886.34,0.00035616,2]
[314859220,1708597850477,-500.0,0.00035616,2]
[314859221,1708597850488,-15807.27,0.00035616,2]
[314859222,1708597850499,-641.08,0.00035616,2]
[314859223,1708597850508,-2694.557204,0.00035616,7]
[314859224,1708597850518,-733.47,0.00035616,2]
[314859225,1708597850528,-1540.68,0.00035616,2]
[314859226,1708597850539,-500.0,0.00035616,2]
[314859227,1708597850549,-151.0,0.00035616,7]
[314859228,1708597850559,-500.0,0.00035616,2]
[314859229,1708597850569,-1729.16,0.00035616,2]
[314859230,1708597850579,-565.32,0.00035616,2]
[314859231,1708597850590,-2694.557204,0.00035616,7]
[314859232,1708597850601,-500.0,0.00035616,2]
[314859233,1708597850610,-500.0,0.00035616,2]
[314859234,1708597850620,-500.0,0.00035616,2]
[314859235,1708597850629,-1175.86,0.00035616,2]
[314859236,1708597850638,-500.0,0.00035616,2]
[314859237,1708597850648,-500.0,0.00035616,2]
[314859238,1708597850657,-274.900625,0.00035616,7]
[314859239,1708597850666,-500.0,0.00035616,2]
[314859240,1708597850676,-151.0,0.00035616,7]
[314859241,1708597850687,-500.0,0.00035616,2]
[314859242,1708597850696,-274.900625,0.00035616,7]
[314859243,1708597850705,-4776.42,0.00035616,2]
[314859244,1708597850715,-1026.39,0.00035616,2]
[314859245,1708597850724,-9188.48,0.00035616,2]
[314859246,1708597850733,-4545.61,0.00035616,2]
[314859247,1708597850743,-968.7,0.00035616,2]
[314859248,1708597850752,-500.0,0.00035616,2]
[314859249,1708597850761,-160.15457358,0.00035616,2]
[314859250,1708597850771,-500.0,0.00035616,2]
[314859251,1708597850781,-1567.4,0.00035616,2]
[314859252,1708597850791,-563.01,0.00035616,2]
[314859253,1708597850801,-1636.81,0.00035616,2]
[314859254,1708597850811,-500.0,0.00035616,2]
[314859255,1708597850821,-500.0,0.00035616,2]
[314859256,1708597850832,-444.502205,0.00035616,7]
[314859257,1708597850842,-504.07541387,0.00035616,2]
[314859258,1708597850852,-1322.84,0.00035616,2]
[314859259,1708597850861,-500.0,0.00035616,2]
[314859260,1708597850871,-444.502205,0.00035616,7]
[314859261,1708597850881,-500.0,0.00035616,2]
[314859262,1708597850891,-500.0,0.00035616,2]
[314859263,1708597850901,-631.890425,0.00035616,7]
[314859264,1708597850911,-729.13,0.00035616,2]
[314859265,1708597850921,-545.94,0.00035616,2]
[314859266,1708597850931,-8534.21,0.00035616,2]
[314859267,1708597850941,-918.98,0.00035616,2]
[314859268,1708597850951,-1245.97,0.00035616,2]
[314859269,1708597850960,-500.0,0.00035616,2]
[314859270,1708597850970,-849.35,0.00035616,2]
[314859271,1708597850980,-501.00139738,0.00035616,2]
[314859272,1708597850989,-500.0,0.00035616,2]
[314859273,1708597850999,-631.890425,0.00035616,7]
[314859274,1708597851008,-303.2857852,0.00035616,2]
[314859275,1708597851018,-1918.84,0.00035616,2]
[314859276,1708597851028,-581.39,0.00035616,2]
[314859277,1708597851038,-1701.48,0.00035616,2]
[314859278,1708597851048,-1056.11,0.00035616,2]
[314859279,1708597851057,-199.7555413,0.00035616,2]
[314859280,1708597851066,-500.0,0.00035616,2]
[314859281,1708597851076,-151.0,0.00035616,7]
[314859282,1708597851085,-445.99827214,0.00035616,2]
[314859283,1708597851095,-1576.96,0.00035616,2]
[314859284,1708597851104,-582.71,0.00035616,2]
[314859285,1708597851114,-896.73,0.00035616,2]
[314859286,1708597851123,-1395.08,0.00035616,2]
[314859287,1708597851133,-151.0,0.00035616,7]
[314859288,1708597851142,-1007.18,0.00035616,2]
[314859289,1708597851461,-500.0,0.00035616,2]
[314859290,1708597851473,-500.0,0.00035616,2]
[314859291,1708597851484,-500.0,0.00035616,2]
[314859292,1708597851495,-500.0,0.00035616,2]
[314859293,1708597851505,-500.0,0.00035616,2]
[314859294,1708597851515,-1445.9,0.00035616,2]
[314859295,1708597851525,-495.07182445,0.00035616,2]
[314859296,1708597851535,-718.22,0.00035616,2]
[314859297,1708597851544,-3857.08,0.00035616,2]
[314859298,1708597851554,-500.0,0.00035616,2]
[314859299,1708597851564,-500.0,0.00035616,2]
[314859300,1708597851576,-500.0,0.00035616,2]
[314859301,1708597851586,-500.0,0.00035616,2]
[314859302,1708597851596,-500.0,0.00035616,2]
[314859303,1708597851606,-1256.08,0.00035616,2]
[314859304,1708597851616,-500.0,0.00035616,2]
[314859305,1708597851625,-151.0,0.00035616,7]
[314859306,1708597851635,-500.0,0.00035616,2]
[314859307,1708597851645,-505.03922659,0.00035616,2]
[314859308,1708597851654,-4102.87,0.00035616,2]
[314859309,1708597851665,-5411.68,0.00035616,2]
[314859310,1708597851675,-4671.73,0.00035616,2]
[314859311,1708597851685,-3245.38,0.00035616,2]
[314859312,1708597851694,-541.95,0.00035616,2]
[314859313,1708597851703,-500.0,0.00035616,2]
[314859314,1708597851713,-500.0,0.00035616,2]
[314859315,1708597851728,-681.34,0.00035616,2]
[314859316,1708597851739,-309.78554613,0.00035616,2]
[314859317,1708597851750,-500.0,0.00035616,2]
[314859318,1708597851761,-888.34,0.00035616,2]
[314859319,1708597851771,-500.0,0.00035616,2]
[314859320,1708597851781,-1976.61,0.00035616,2]
[314859321,1708597851791,-811.19,0.00035616,2]
[314859322,1708597851802,-3668.57,0.00035616,2]
[314859323,1708597851812,-500.0,0.00035616,2]
[314859324,1708597851823,-500.0,0.00035616,2]
[314859325,1708597851833,-1692.72,0.00035616,2]
[314859326,1708597851843,-233.94995,0.00035616,7]
[314859327,1708597851854,-151.0,0.00035616,3]
[314859328,1708597851864,-2046.07,0.00035616,2]
[314859329,1708597851874,-233.94995,0.00035616,7]
[314859330,1708597851884,-500.0,0.00035616,2]
[314859331,1708597851895,-500.0,0.00035616,2]
[314859332,1708597851905,-674.1,0.00035616,2]
[314859333,1708597851914,-3225.0,0.00035616,2]
[314859334,1708597851924,-890.54444339,0.00035616,7]
[314859335,1708597851935,-1183.92,0.00035616,2]
[314859336,1708597851945,-13294.03,0.00035616,2]
[314859337,1708597851955,-500.0,0.00035616,2]
[314859338,1708597851966,-500.0,0.00035616,2]
[314859339,1708597851976,-1421.965541,0.00035616,7]
[314859340,1708597851986,-500.0,0.00035616,2]
[314859341,1708597851996,-587.59,0.00035616,2]
[314859342,1708597852007,-554.92208424,0.00035616,2]
[314859343,1708597852016,-1629.85,0.00035616,2]
[314859344,1708597852027,-1361.02,0.00035616,2]
[314859345,1708597852037,-1490.76,0.00035616,2]
[314859346,1708597852048,-264.889617,0.00035616,7]
[314859347,1708597852058,-1421.965541,0.00035616,7]
[314859348,1708597852067,-264.889617,0.00035616,7]
[314859349,1708597852078,-500.0,0.00035616,2]
[314859350,1708597852087,-2715.9,0.00035616,2]
[314859351,1708597852097,-905.91,0.00035616,2]
[314859352,1708597852107,-500.0,0.00035616,2]
[314859353,1708597852117,-261.052876,0.00035616,7]
[314859354,1708597852127,-7284.35,0.00035616,2]
[314859355,1708597852137,-1012.94,0.00035616,2]
[314859356,1708597852148,-500.0,0.00035616,2]
[314859357,1708597852162,-500.0,0.00035616,2]
[314859358,1708597852172,-572.38,0.00035616,2]
[314859359,1708597852183,-500.0,0.00035616,2]
[314859360,1708597852193,-1386.32,0.00035616,2]
[314859361,1708597852203,-151.0,0.00035616,7]
[314859362,1708597852213,-500.0,0.00035616,2]
[314859363,1708597852223,-863.24,0.00035616,2]
[314859364,1708597852233,-1870.08,0.00035616,2]
[314859365,1708597852244,-500.0,0.00035616,2]
[314859366,1708597852254,-500.0,0.00035616,2]
[314859367,1708597852264,-151.0,0.00035616,7]
[314859368,1708597852274,-504.44504256,0.00035616,2]
[314859369,1708597852284,-151.0,0.00035616,7]
[314859370,1708597852294,-500.0,0.00035616,2]
[314859371,1708597852304,-1814.49,0.00035616,2]
[314859372,1708597852314,-500.0,0.00035616,2]
[314859373,1708597852326,-678.090077,0.00035616,7]
[314859374,1708597852337,-500.76424534,0.00035616,2]
[314859375,1708597852347,-261.052876,0.00035616,7]
[314859376,1708597852357,-682.44,0.00035616,2]
[314859377,1708597852367,-502.60049914,0.00035616,2]
[314859378,1708597852377,-19703.17,0.00035616,2]
[314859379,1708597852387,-1093.46,0.00035616,2]
[314859380,1708597852397,-500.0,0.00035616,2]
[314859381,1708597852407,-500.0,0.00035616,2]
[314859382,1708597852418,-2003.18,0.00035616,2]
[314859383,1708597852432,-948.06,0.00035616,2]
[314859384,1708597852442,-500.0,0.00035616,2]
[314859385,1708597852452,-678.090077,0.00035616,7]
[314859386,1708597852463,-1188.91,0.00035616,2]
[314859387,1708597852473,-813.77,0.00035616,2]
[314859388,1708597852486,-2333.31,0.00035616,2]
[314859389,1708597852502,-1586.6,0.00035616,2]
[314859390,1708597852512,-2719.48,0.00035616,2]
[314859391,1708597852523,-500.0,0.00035616,2]
[314859392,1708597852534,-500.0,0.00035616,2]
[314859393,1708597852544,-169.952414,0.00035616,7]
[314859394,1708597852553,-2734.21,0.00035616,2]
[314859395,1708597852564,-708.79,0.00035616,2]
[314859396,1708597852574,-169.952414,0.00035616,7]
[314859397,1708597852584,-581.00296587,0.00035616,2]
[314859398,1708597852593,-936.74,0.00035616,2]
[314859399,1708597852603,-500.0,0.00035616,2]
[314859400,1708597852613,-519.991113,0.00035616,7]
[314859401,1708597852623,-3861.81,0.00035616,2]
[314859402,1708597852633,-151.0,0.00035616,7]
[314859403,1708597852642,-784.34,0.00035616,2]
[314859404,1708597852652,-803.92,0.00035616,2]
[314859405,1708597852662,-500.0,0.00035616,2]
[314859406,1708597852671,-500.0,0.00035616,2]
[314859407,1708597852681,-500.0,0.00035616,2]
[314859408,1708597852691,-252.677495,0.00035616,7]
[314859409,1708597852701,-523.31816289,0.00035616,2]
[314859410,1708597852711,-519.991113,0.00035616,7]
[314859411,1708597852721,-1570.58,0.00035616,2]
[314859412,1708597852731,-500.0,0.00035616,2]
[314859413,1708597852742,-500.0,0.00035616,2]
[314859414,1708597852753,-500.0,0.00035616,2]
[314859415,1708597852763,-163.551761,0.00035616,7]
[314859416,1708597852774,-500.0,0.00035616,2]
[314859417,1708597852784,-500.0,0.00035616,2]
[314859418,1708597852795,-3942.06,0.00035616,2]
[314859419,1708597852804,-1018.09,0.00035616,2]
[314859420,1708597852814,-640.43286379,0.00035616,2]
[314859421,1708597852824,-500.0,0.00035616,2]
[314859422,1708597852834,-514.15135601,0.00035616,2]
[314859423,1708597852844,-354.3040363,0.00035616,2]
[314859424,1708597852854,-3219.77,0.00035616,2]
[314859425,1708597852865,-4594.05,0.00035616,2]
[314859426,1708597852875,-500.0,0.00035616,2]
[314859427,1708597852884,-1369.79,0.00035616,2]
[314859428,1708597852894,-1524.83,0.00035616,2]